[Event "*** Titled Tuesday Blitz"]
[Site "Chess.com"]
[Date "2021.04.27"]
[Round "7"]
[White "Agoking701"]
[Black "Cambek64"]
[Result "1-0"]
[WhiteElo "2287"]
[BlackElo "2480"]
[TimeControl "180+1"]
[EndTime "11:18:33 PDT"]
[Termination "Agoking701 won by resignation"]

1. e4 {[%clk 0:03:00.9]} 1... c5 {[%clk 0:02:54.3]} 2. Nf3 {[%clk 0:03:00.9]}
2... e6 {[%clk 0:02:54.4]} 3. c3 {[%clk 0:02:49.7]} 3... Nf6 {[%clk 0:02:49.3]}
4. Bd3 {[%clk 0:02:45.2]} 4... Nc6 {[%clk 0:02:47.6]} 5. O-O {[%clk 0:02:42.1]}
5... d5 {[%clk 0:02:46.6]} 6. e5 {[%clk 0:02:39.7]} 6... Nd7 {[%clk 0:02:44.8]}
7. Re1 {[%clk 0:02:40.1]} 7... Qc7 {[%clk 0:02:44.3]} 8. Qe2 {[%clk 0:02:39.5]}
8... Be7 {[%clk 0:02:41.2]} 9. Bc2 {[%clk 0:02:39.4]} 9... a5 {[%clk 0:02:34.3]}
10. a3 {[%clk 0:02:23.7]} 10... b5 {[%clk 0:02:33.3]} 11. d3 {[%clk 0:01:59.8]}
11... Ba6 {[%clk 0:02:32.2]} 12. Bf4 {[%clk 0:01:56]} 12... O-O {[%clk
0:02:31.2]} 13. Nbd2 {[%clk 0:01:55.2]} 13... b4 {[%clk 0:02:30.9]} 14. axb4
{[%clk 0:01:51.2]} 14... axb4 {[%clk 0:02:28.2]} 15. c4 {[%clk 0:01:50.9]} 15...
d4 {[%clk 0:02:23.5]} 16. Ba4 {[%clk 0:01:34.2]} 16... Bb7 {[%clk 0:02:22.4]}
17. Bb5 {[%clk 0:01:29.8]} 17... Na7 {[%clk 0:02:03.7]} 18. Bxd7 {[%clk
0:01:26.5]} 18... Qxd7 {[%clk 0:02:02.1]} 19. Ne4 {[%clk 0:01:26.6]} 19... Bxe4
{[%clk 0:02:00.1]} 20. Qxe4 {[%clk 0:01:24]} 20... h6 {[%clk 0:01:44.3]} 21. Nd2
{[%clk 0:01:16.6]} 21... Qc6 {[%clk 0:01:35.5]} 22. Kf1 {[%clk 0:01:00.5]} 22...
Qxe4 {[%clk 0:01:31.9]} 23. Nxe4 {[%clk 0:01:01.4]} 23... Nc6 {[%clk 0:01:31.6]}
24. Ke2 {[%clk 0:00:57.6]} 24... Kh7 {[%clk 0:01:24.8]} 25. Kd2 {[%clk
0:00:54.2]} 25... f5 {[%clk 0:01:22.7]} 26. exf6 {[%clk 0:00:47]} 26... gxf6
{[%clk 0:01:22.6]} 27. Bd6 {[%clk 0:00:45]} 27... Bxd6 {[%clk 0:01:11.3]} 28.
Nxd6 {[%clk 0:00:45.9]} 28... Na5 {[%clk 0:01:09.6]} 29. Kc2 {[%clk 0:00:37.3]}
29... e5 {[%clk 0:01:09.7]} 30. Ra4 {[%clk 0:00:23.7]} 30... b3+ {[%clk
0:01:06.1]} 31. Kd2 {[%clk 0:00:23.6]} 31... Nc6 {[%clk 0:01:01.6]} 32. Rea1
{[%clk 0:00:21.4]} 32... Rad8 {[%clk 0:00:58.5]} 33. Ne4 {[%clk 0:00:20.3]}
33... f5 {[%clk 0:00:49.4]} 34. Nxc5 {[%clk 0:00:20]} 34... Rf6 {[%clk
0:00:47.2]} 35. Ra6 {[%clk 0:00:18.9]} 35... Rg8 {[%clk 0:00:39.5]} 36. g3
{[%clk 0:00:18.9]} 36... Kg6 {[%clk 0:00:35.1]} 37. Rb6 {[%clk 0:00:18.8]} 37...
Ne7 {[%clk 0:00:28.3]} 38. Rxf6+ {[%clk 0:00:18.5]} 38... Kxf6 {[%clk
0:00:28.9]} 39. Nxb3 {[%clk 0:00:18.2]} 39... e4 {[%clk 0:00:27.6]} 40. Nc5
{[%clk 0:00:16.5]} 40... Nc6 {[%clk 0:00:26.1]} 41. Ra6 {[%clk 0:00:15.8]} 41...
Rc8 {[%clk 0:00:24.6]} 42. dxe4 {[%clk 0:00:12.7]} 42... fxe4 {[%clk 0:00:23.8]}
43. Nxe4+ {[%clk 0:00:13.6]} 43... Ke5 {[%clk 0:00:22.8]} 44. f3 {[%clk
0:00:11.1]} 44... d3 {[%clk 0:00:22.9]} 45. Kc3 {[%clk 0:00:09.3]} 45... d2
{[%clk 0:00:21.9]} 46. Kxd2 {[%clk 0:00:08.5]} 46... Kd4 {[%clk 0:00:21.1]} 47.
b3 {[%clk 0:00:05.2]} 47... Rc7 {[%clk 0:00:19.2]} 48. Ke2 {[%clk 0:00:05.5]}
48... h5 {[%clk 0:00:19.5]} 49. Kf2 {[%clk 0:00:05.7]} 49... h4 {[%clk
0:00:19.8]} 50. gxh4 {[%clk 0:00:05.9]} 50... Nb4 {[%clk 0:00:15.8]} 51. Rd6+
{[%clk 0:00:05.8]} 51... Ke5 {[%clk 0:00:15.2]} 52. Rg6 {[%clk 0:00:05.7]} 52...
Ra7 {[%clk 0:00:10.6]} 53. Kg3 {[%clk 0:00:05.5]} 53... Ra1 {[%clk 0:00:09.7]}
54. Rg5+ {[%clk 0:00:05.8]} 54... Kd4 {[%clk 0:00:09]} 55. h5 {[%clk 0:00:04.5]}
55... Ke3 {[%clk 0:00:09.3]} 56. h3 {[%clk 0:00:02.8]} 56... Nc2 {[%clk
0:00:09.2]} 57. Re5 {[%clk 0:00:02.4]} 57... Nd4 {[%clk 0:00:06.9]} 58. Re8
{[%clk 0:00:02]} 58... Ne2+ {[%clk 0:00:06.2]} 59. Kg4 {[%clk 0:00:01.7]} 59...
Rg1+ {[%clk 0:00:06.3]} 60. Kf5 {[%clk 0:00:02.4]} 60... Nd4+ {[%clk 0:00:06]}
61. Kf6 {[%clk 0:00:02.3]} 61... Nxf3 {[%clk 0:00:06.9]} 62. Ng5+ {[%clk
0:00:02.4]} 62... Kf4 {[%clk 0:00:05.9]} 63. Nxf3 {[%clk 0:00:02.8]} 63... Kxf3
{[%clk 0:00:05.8]} 64. h6 {[%clk 0:00:03.3]} 64... Rf1 {[%clk 0:00:06.6]} 65. h7
{[%clk 0:00:03.3]} 65... Kg3+ {[%clk 0:00:07.5]} 66. Kg7 {[%clk 0:00:03.9]}
66... Kh2 {[%clk 0:00:07.5]} 67. h8=Q {[%clk 0:00:04.1]} 67... Rg1+ {[%clk
0:00:08.2]} 68. Kh7 {[%clk 0:00:04.3]} 68... Rg2 {[%clk 0:00:08.8]} 69. Qc3
{[%clk 0:00:04.1]} 69... Rg3 {[%clk 0:00:08.5]} 70. Re3 {[%clk 0:00:04.5]} 70...
Rg7+ {[%clk 0:00:07.5]} 71. Kxg7 {[%clk 0:00:03.6]} 1-0

[Event "*** Titled Tuesday Blitz"]
[Site "Chess.com"]
[Date "2021.04.27"]
[Round "7"]
[White "Andreikka"]
[Black "jacky72"]
[Result "1/2-1/2"]
[WhiteElo "2877"]
[BlackElo "2732"]
[TimeControl "180+1"]
[EndTime "11:18:34 PDT"]
[Termination "Game drawn - insufficient material"]

1. e4 {[%clk 0:02:41.2]} 1... e5 {[%clk 0:02:59.4]} 2. Nf3 {[%clk 0:02:41.5]}
2... Nc6 {[%clk 0:02:59.9]} 3. Bb5 {[%clk 0:02:41.8]} 3... a6 {[%clk 0:03:00.2]}
4. Ba4 {[%clk 0:02:41.9]} 4... d6 {[%clk 0:03:01.1]} 5. c3 {[%clk 0:02:41.8]}
5... Bd7 {[%clk 0:03:01.4]} 6. d4 {[%clk 0:02:41.6]} 6... g6 {[%clk 0:03:01.7]}
7. Bg5 {[%clk 0:02:41.6]} 7... f6 {[%clk 0:03:01.6]} 8. Be3 {[%clk 0:02:42.3]}
8... Nh6 {[%clk 0:03:01.9]} 9. O-O {[%clk 0:02:40.9]} 9... Bg7 {[%clk
0:02:59.4]} 10. Nbd2 {[%clk 0:02:38.3]} 10... Ng4 {[%clk 0:02:58.4]} 11. Bb3
{[%clk 0:02:34]} 11... Nxe3 {[%clk 0:02:56]} 12. fxe3 {[%clk 0:02:33.9]} 12...
Na5 {[%clk 0:02:40.8]} 13. Bc2 {[%clk 0:02:33.8]} 13... O-O {[%clk 0:02:39.2]}
14. b4 {[%clk 0:02:34.5]} 14... Nc6 {[%clk 0:02:38.8]} 15. Bb3+ {[%clk
0:02:35.4]} 15... Kh8 {[%clk 0:02:38.7]} 16. a3 {[%clk 0:02:36.3]} 16... Qe7
{[%clk 0:02:35.2]} 17. Qe1 {[%clk 0:02:35.3]} 17... f5 {[%clk 0:02:32.5]} 18.
Bd5 {[%clk 0:02:31.4]} 18... fxe4 {[%clk 0:02:27.3]} 19. Nxe4 {[%clk 0:02:29.3]}
19... exd4 {[%clk 0:02:26.6]} 20. exd4 {[%clk 0:02:25.7]} 20... Be6 {[%clk
0:02:11.7]} 21. Bxc6 {[%clk 0:01:47.1]} 21... bxc6 {[%clk 0:02:11.5]} 22. Neg5
{[%clk 0:01:48]} 22... Rae8 {[%clk 0:02:11.8]} 23. Qxe6 {[%clk 0:01:48.6]} 23...
Qxe6 {[%clk 0:02:11.9]} 24. Nxe6 {[%clk 0:01:49.5]} 24... Rxe6 {[%clk
0:02:12.6]} 25. Rfe1 {[%clk 0:01:50.4]} 25... Rfe8 {[%clk 0:02:09.2]} 26. Rxe6
{[%clk 0:01:50.3]} 26... Rxe6 {[%clk 0:02:10.1]} 27. Kf2 {[%clk 0:01:51.2]}
27... c5 {[%clk 0:02:06.8]} 28. Re1 {[%clk 0:01:41.7]} 28... Rxe1 {[%clk
0:02:04.3]} 29. Kxe1 {[%clk 0:01:42.6]} 29... cxd4 {[%clk 0:02:04.8]} 30. cxd4
{[%clk 0:01:43.3]} 30... Kg8 {[%clk 0:01:59.4]} 31. Ke2 {[%clk 0:01:43.3]} 31...
Bf6 {[%clk 0:01:45.9]} 32. Kd3 {[%clk 0:01:33.3]} 32... Kf7 {[%clk 0:01:40.6]}
33. d5 {[%clk 0:01:32.6]} 33... Ke7 {[%clk 0:01:39.3]} 34. a4 {[%clk 0:01:20.1]}
34... Kd7 {[%clk 0:01:38]} 35. Kc4 {[%clk 0:01:20.6]} 35... c6 {[%clk
0:01:37.7]} 36. Ne1 {[%clk 0:01:16.3]} 36... Kc7 {[%clk 0:01:19.1]} 37. Nd3
{[%clk 0:01:13.3]} 37... Bg5 {[%clk 0:01:15.6]} 38. h3 {[%clk 0:01:13]} 38...
Be3 {[%clk 0:01:14.9]} 39. dxc6 {[%clk 0:00:55.4]} 39... Kxc6 {[%clk 0:01:15]}
40. b5+ {[%clk 0:00:56.3]} 40... axb5+ {[%clk 0:01:15.9]} 41. axb5+ {[%clk
0:00:57.2]} 41... Kb6 {[%clk 0:01:13.9]} 42. Nb4 {[%clk 0:00:58.1]} 42... Bg5
{[%clk 0:01:08.7]} 43. Nd5+ {[%clk 0:00:59]} 43... Ka5 {[%clk 0:01:06.5]} 44.
Nc3 {[%clk 0:00:59.9]} 44... Bf6 {[%clk 0:01:04.1]} 45. Nd5 {[%clk 0:00:47.5]}
45... Bd8 {[%clk 0:00:55.3]} 46. Nf4 {[%clk 0:00:47.9]} 46... Be7 {[%clk
0:00:48.9]} 47. g4 {[%clk 0:00:42.7]} 47... Bf6 {[%clk 0:00:41.9]} 48. Nd5
{[%clk 0:00:22]} 48... Bd8 {[%clk 0:00:41]} 49. Nb4 {[%clk 0:00:22.6]} 49... Bf6
{[%clk 0:00:36.9]} 50. Nc6+ {[%clk 0:00:15.9]} 50... Kb6 {[%clk 0:00:37.1]} 51.
Nb4 {[%clk 0:00:14.5]} 51... Ka5 {[%clk 0:00:37.2]} 52. Nd5 {[%clk 0:00:15.1]}
52... Bd8 {[%clk 0:00:37.3]} 53. Nf4 {[%clk 0:00:13.3]} 53... Be7 {[%clk
0:00:36.3]} 54. Ne2 {[%clk 0:00:10.9]} 54... h5 {[%clk 0:00:31.9]} 55. Nf4
{[%clk 0:00:10.3]} 55... hxg4 {[%clk 0:00:31]} 56. hxg4 {[%clk 0:00:11.2]} 56...
g5 {[%clk 0:00:31.6]} 57. Nd5 {[%clk 0:00:10.3]} 57... Bd8 {[%clk 0:00:31.8]}
58. Nc3 {[%clk 0:00:10.6]} 58... Bf6 {[%clk 0:00:31]} 59. Nd5 {[%clk 0:00:02.9]}
59... Bd8 {[%clk 0:00:30.5]} 60. b6 {[%clk 0:00:03.8]} 60... Ka6 {[%clk
0:00:26.4]} 61. Kd4 {[%clk 0:00:01.7]} 61... Bxb6+ {[%clk 0:00:19.2]} 62. Ke4
{[%clk 0:00:02.2]} 62... Bd8 {[%clk 0:00:15.6]} 63. Kf5 {[%clk 0:00:03.1]} 63...
Kb5 {[%clk 0:00:16.1]} 64. Ke6 {[%clk 0:00:02.3]} 64... Kc5 {[%clk 0:00:16.3]}
65. Ne3 {[%clk 0:00:02.9]} 65... Ba5 {[%clk 0:00:15.6]} 66. Nd5 {[%clk
0:00:02.6]} 66... Bd2 {[%clk 0:00:15.6]} 67. Nf6 {[%clk 0:00:03.2]} 67... Kd4
{[%clk 0:00:10.4]} 68. Kxd6 {[%clk 0:00:02.1]} 68... Ke3 {[%clk 0:00:09.1]} 69.
Ke5 {[%clk 0:00:02.6]} 69... Kf3 {[%clk 0:00:09.1]} 70. Kf5 {[%clk 0:00:03]}
70... Bc1 {[%clk 0:00:03.5]} 71. Ne4 {[%clk 0:00:03.9]} 71... Ke3 {[%clk
0:00:02.5]} 72. Nxg5 {[%clk 0:00:04.1]} 72... Kd4 {[%clk 0:00:03.4]} 73. Nh3
{[%clk 0:00:02.7]} 73... Kd5 {[%clk 0:00:03.6]} 74. Nf4+ {[%clk 0:00:03.6]}
74... Kd6 {[%clk 0:00:03.3]} 75. g5 {[%clk 0:00:04.3]} 75... Ke7 {[%clk
0:00:03.8]} 76. Nd3 {[%clk 0:00:03.4]} 76... Bxg5 {[%clk 0:00:03.5]} 1/2-1/2

[Event "*** Titled Tuesday Blitz"]
[Site "Chess.com"]
[Date "2021.04.27"]
[Round "7"]
[White "azikom"]
[Black "Mihnea2017"]
[Result "1/2-1/2"]
[WhiteElo "2648"]
[BlackElo "2483"]
[TimeControl "180+1"]
[EndTime "11:18:50 PDT"]
[Termination "Game drawn - insufficient material"]

1. d4 {[%clk 0:03:00.8]} 1... Nf6 {[%clk 0:03:00]} 2. Nf3 {[%clk 0:03:00.4]}
2... e6 {[%clk 0:03:00.1]} 3. c4 {[%clk 0:02:59.6]} 3... d5 {[%clk 0:03:00]} 4.
Nc3 {[%clk 0:02:59]} 4... Nbd7 {[%clk 0:03:00.2]} 5. e3 {[%clk 0:02:58.5]} 5...
Be7 {[%clk 0:02:49.4]} 6. b3 {[%clk 0:02:57.8]} 6... O-O {[%clk 0:02:46.6]} 7.
Bb2 {[%clk 0:02:57.5]} 7... b6 {[%clk 0:02:46.3]} 8. cxd5 {[%clk 0:02:57]} 8...
exd5 {[%clk 0:02:45.9]} 9. Bd3 {[%clk 0:02:55.6]} 9... Bb7 {[%clk 0:02:43.4]}
10. O-O {[%clk 0:02:56]} 10... c5 {[%clk 0:02:34.4]} 11. Ne5 {[%clk 0:02:55.5]}
11... a6 {[%clk 0:02:27.7]} 12. Qf3 {[%clk 0:02:48.4]} 12... Re8 {[%clk
0:02:23.5]} 13. Qh3 {[%clk 0:02:42.7]} 13... Nf8 {[%clk 0:02:23.1]} 14. Rad1
{[%clk 0:02:40.9]} 14... Bd6 {[%clk 0:02:18.3]} 15. f4 {[%clk 0:02:39.1]} 15...
b5 {[%clk 0:01:50]} 16. Ne2 {[%clk 0:02:32.9]} 16... c4 {[%clk 0:01:45.3]} 17.
Bb1 {[%clk 0:02:33.1]} 17... Ne4 {[%clk 0:01:43.5]} 18. Bxe4 {[%clk 0:02:06.6]}
18... dxe4 {[%clk 0:01:44.4]} 19. bxc4 {[%clk 0:02:06.7]} 19... bxc4 {[%clk
0:01:29.6]} 20. Nxc4 {[%clk 0:02:05.9]} 20... Rc8 {[%clk 0:01:22.3]} 21. Nxd6
{[%clk 0:02:03.2]} 21... Qxd6 {[%clk 0:01:23.2]} 22. d5 {[%clk 0:01:58.9]} 22...
Rc2 {[%clk 0:01:13.7]} 23. Be5 {[%clk 0:01:57.8]} 23... Qd7 {[%clk 0:01:00.4]}
24. Nd4 {[%clk 0:01:47]} 24... Qxh3 {[%clk 0:00:59.5]} 25. gxh3 {[%clk
0:01:46.6]} 25... Rxa2 {[%clk 0:00:59.1]} 26. Nf5 {[%clk 0:01:31.7]} 26... f6
{[%clk 0:00:58.6]} 27. Nd6 {[%clk 0:01:18.6]} 27... Re7 {[%clk 0:00:58.3]} 28.
Bc3 {[%clk 0:01:15.5]} 28... Ng6 {[%clk 0:00:52.1]} 29. Rf2 {[%clk 0:01:10.6]}
29... Rxf2 {[%clk 0:00:39.9]} 30. Kxf2 {[%clk 0:01:10.2]} 30... Rd7 {[%clk
0:00:40.8]} 31. Bb4 {[%clk 0:01:09.3]} 31... Ne7 {[%clk 0:00:35]} 32. Nxb7
{[%clk 0:01:07]} 32... Rxb7 {[%clk 0:00:35.3]} 33. Bxe7 {[%clk 0:01:04.6]} 33...
Rxe7 {[%clk 0:00:34.8]} 34. f5 {[%clk 0:00:59.6]} 34... Kf7 {[%clk 0:00:31.1]}
35. Kg3 {[%clk 0:00:59]} 35... Ra7 {[%clk 0:00:27.2]} 36. Kf4 {[%clk 0:00:47.8]}
36... Ke7 {[%clk 0:00:27.2]} 37. Ra1 {[%clk 0:00:44.3]} 37... a5 {[%clk
0:00:26.7]} 38. Ra4 {[%clk 0:00:43.3]} 38... Kd6 {[%clk 0:00:26.3]} 39. Kxe4
{[%clk 0:00:43.3]} 39... Ra8 {[%clk 0:00:26.6]} 40. Kd4 {[%clk 0:00:43.2]} 40...
Ra7 {[%clk 0:00:27]} 41. e4 {[%clk 0:00:43.2]} 41... Ra8 {[%clk 0:00:27]} 42. h4
{[%clk 0:00:43.5]} 42... h5 {[%clk 0:00:26.3]} 43. h3 {[%clk 0:00:43.4]} 43...
Ra7 {[%clk 0:00:26.3]} 44. Kc3 {[%clk 0:00:39.5]} 44... Ke5 {[%clk 0:00:20.8]}
45. Rc4 {[%clk 0:00:35]} 45... a4 {[%clk 0:00:20.5]} 46. Kb2 {[%clk 0:00:34.4]}
46... a3+ {[%clk 0:00:20.6]} 47. Ka2 {[%clk 0:00:34.5]} 47... Ra8 {[%clk
0:00:15]} 48. Rb4 {[%clk 0:00:34.3]} 48... Ra7 {[%clk 0:00:14.6]} 49. Rc4 {[%clk
0:00:33.8]} 49... Ra8 {[%clk 0:00:14.8]} 50. Rc7 {[%clk 0:00:21.8]} 50... Kxe4
{[%clk 0:00:14.7]} 51. d6 {[%clk 0:00:21.7]} 51... Rd8 {[%clk 0:00:12.8]} 52.
Rxg7 {[%clk 0:00:17]} 52... Rxd6 {[%clk 0:00:12.5]} 53. Rh7 {[%clk 0:00:17.5]}
53... Kxf5 {[%clk 0:00:10.2]} 54. Rxh5+ {[%clk 0:00:17.5]} 54... Ke4 {[%clk
0:00:10.3]} 55. Kxa3 {[%clk 0:00:16.3]} 55... Rd3+ {[%clk 0:00:10.6]} 56. Kb2
{[%clk 0:00:16.1]} 56... Rxh3 {[%clk 0:00:11.5]} 57. Kc2 {[%clk 0:00:16.2]}
57... f5 {[%clk 0:00:12]} 58. Rh8 {[%clk 0:00:15.6]} 58... f4 {[%clk 0:00:12]}
59. h5 {[%clk 0:00:14]} 59... Rh2+ {[%clk 0:00:11.5]} 60. Kd1 {[%clk 0:00:13]}
60... Ke3 {[%clk 0:00:10.2]} 61. h6 {[%clk 0:00:12.3]} 61... f3 {[%clk
0:00:09.7]} 62. h7 {[%clk 0:00:09.9]} 62... Rh1+ {[%clk 0:00:09.8]} 63. Kc2
{[%clk 0:00:09.8]} 63... Kf2 {[%clk 0:00:10.2]} 64. Kd2 {[%clk 0:00:09.2]} 64...
Rh6 {[%clk 0:00:09.2]} 65. Kc2 {[%clk 0:00:09.2]} 65... Rc6+ {[%clk 0:00:09.1]}
66. Kd2 {[%clk 0:00:09]} 66... Rd6+ {[%clk 0:00:09.4]} 67. Kc2 {[%clk
0:00:08.9]} 67... Rd7 {[%clk 0:00:10.3]} 68. Kc3 {[%clk 0:00:07.4]} 68... Re7
{[%clk 0:00:10]} 69. Kd2 {[%clk 0:00:05.2]} 69... Rd7+ {[%clk 0:00:09.4]} 70.
Kc3 {[%clk 0:00:04.7]} 70... Kf1 {[%clk 0:00:07.1]} 71. Rf8 {[%clk 0:00:03.9]}
71... Rxh7 {[%clk 0:00:07.2]} 72. Rxf3+ {[%clk 0:00:04.3]} 72... Ke2 {[%clk
0:00:07.9]} 73. Rf8 {[%clk 0:00:04.2]} 73... Rc7+ {[%clk 0:00:07.8]} 74. Kb4
{[%clk 0:00:04.1]} 74... Rd7 {[%clk 0:00:08.2]} 75. Kc5 {[%clk 0:00:04.3]} 75...
Rd2 {[%clk 0:00:08.2]} 76. Kc6 {[%clk 0:00:04.3]} 76... Kd1 {[%clk 0:00:07.9]}
77. Kc7 {[%clk 0:00:04.3]} 77... Kc2 {[%clk 0:00:07.4]} 78. Rd8 {[%clk
0:00:04.1]} 78... Rxd8 {[%clk 0:00:06.9]} 79. Kxd8 {[%clk 0:00:04.3]} 1/2-1/2

[Event "*** Titled Tuesday Blitz"]
[Site "Chess.com"]
[Date "2021.04.27"]
[Round "7"]
[White "gmcorrales"]
[Black "ckgchess"]
[Result "1/2-1/2"]
[WhiteElo "2860"]
[BlackElo "2685"]
[TimeControl "180+1"]
[EndTime "11:19:19 PDT"]
[Termination "Game drawn by repetition"]

1. e4 {[%clk 0:03:00.9]} 1... c5 {[%clk 0:03:00]} 2. Nf3 {[%clk 0:03:00.8]} 2...
d6 {[%clk 0:03:00.5]} 3. d4 {[%clk 0:03:00.9]} 3... cxd4 {[%clk 0:03:01.4]} 4.
Nxd4 {[%clk 0:03:01.8]} 4... Nf6 {[%clk 0:03:01.9]} 5. Nc3 {[%clk 0:03:02.3]}
5... g6 {[%clk 0:03:02.4]} 6. Be3 {[%clk 0:03:02.6]} 6... Bg7 {[%clk 0:03:02.8]}
7. f3 {[%clk 0:03:03.2]} 7... a6 {[%clk 0:03:03.2]} 8. Qd2 {[%clk 0:03:03.6]}
8... h5 {[%clk 0:03:03.6]} 9. Bc4 {[%clk 0:03:02.2]} 9... Qc7 {[%clk 0:03:02.1]}
10. Bb3 {[%clk 0:03:02]} 10... Nbd7 {[%clk 0:03:02.5]} 11. O-O {[%clk
0:03:01.5]} 11... Nc5 {[%clk 0:02:59.9]} 12. Nd5 {[%clk 0:02:59.4]} 12... Nxd5
{[%clk 0:02:59.1]} 13. exd5 {[%clk 0:03:00.3]} 13... Bd7 {[%clk 0:02:32.7]} 14.
Rfe1 {[%clk 0:02:56.1]} 14... Nxb3 {[%clk 0:02:18.8]} 15. cxb3 {[%clk
0:02:56.1]} 15... O-O {[%clk 0:02:00.8]} 16. Rac1 {[%clk 0:02:54.4]} 16... Qd8
{[%clk 0:01:59.3]} 17. Bh6 {[%clk 0:02:50.9]} 17... Bxh6 {[%clk 0:01:49.1]} 18.
Qxh6 {[%clk 0:02:51.8]} 18... Qb6 {[%clk 0:01:49.5]} 19. Qe3 {[%clk 0:02:50.8]}
19... Rac8 {[%clk 0:01:47.3]} 20. Rc3 {[%clk 0:02:50.4]} 20... Rxc3 {[%clk
0:01:44.6]} 21. bxc3 {[%clk 0:02:51.3]} 21... Rc8 {[%clk 0:01:40.4]} 22. c4
{[%clk 0:02:33.6]} 22... Qc5 {[%clk 0:01:37.4]} 23. Qf2 {[%clk 0:02:17.9]} 23...
Re8 {[%clk 0:01:22]} 24. a4 {[%clk 0:02:15.3]} 24... b5 {[%clk 0:01:15.2]} 25.
axb5 {[%clk 0:01:49.3]} 25... axb5 {[%clk 0:01:16.1]} 26. Nxb5 {[%clk
0:01:49.5]} 26... Qxf2+ {[%clk 0:01:14.6]} 27. Kxf2 {[%clk 0:01:50.4]} 27...
Bxb5 {[%clk 0:01:14.8]} 28. cxb5 {[%clk 0:01:51.3]} 28... Rb8 {[%clk 0:00:54.7]}
29. Rxe7 {[%clk 0:01:50.7]} 29... Rxb5 {[%clk 0:00:54.8]} 30. Re3 {[%clk
0:01:51.1]} 30... Rxd5 {[%clk 0:00:53.5]} 31. b4 {[%clk 0:01:51.6]} 31... Kf8
{[%clk 0:00:46.7]} 32. Ke2 {[%clk 0:01:51.6]} 32... Rb5 {[%clk 0:00:46.8]} 33.
Rb3 {[%clk 0:01:50]} 33... Ke7 {[%clk 0:00:44.1]} 34. Kd3 {[%clk 0:01:50.1]}
34... Kd7 {[%clk 0:00:43.7]} 35. Kc3 {[%clk 0:01:50.4]} 35... h4 {[%clk
0:00:36.4]} 36. g4 {[%clk 0:01:47.7]} 36... hxg3 {[%clk 0:00:34.3]} 37. hxg3
{[%clk 0:01:48.6]} 37... Rf5 {[%clk 0:00:31.6]} 38. Kb2 {[%clk 0:01:33.4]} 38...
Kc6 {[%clk 0:00:31.5]} 39. Ka3 {[%clk 0:01:32.8]} 39... Kb5 {[%clk 0:00:26.9]}
40. Rd3 {[%clk 0:01:32.3]} 40... d5 {[%clk 0:00:25.2]} 41. f4 {[%clk 0:01:11.9]}
41... Kc4 {[%clk 0:00:22]} 42. Rd1 {[%clk 0:01:04.7]} 42... d4 {[%clk
0:00:22.4]} 43. Rc1+ {[%clk 0:01:01.4]} 43... Kd3 {[%clk 0:00:21.3]} 44. Kb3
{[%clk 0:00:55.2]} 44... Ke2 {[%clk 0:00:18.4]} 45. Rc7 {[%clk 0:00:49.8]} 45...
d3 {[%clk 0:00:18.4]} 46. Re7+ {[%clk 0:00:48.5]} 46... Kd1 {[%clk 0:00:17.3]}
47. Rd7 {[%clk 0:00:47.2]} 47... Ke2 {[%clk 0:00:14.7]} 48. Kc3 {[%clk
0:00:47.4]} 48... Rf6 {[%clk 0:00:12.4]} 49. b5 {[%clk 0:00:47.4]} 49... Rf5
{[%clk 0:00:10.3]} 50. b6 {[%clk 0:00:43.7]} 50... Rc5+ {[%clk 0:00:09.9]} 51.
Kb4 {[%clk 0:00:35.7]} 51... Rc1 {[%clk 0:00:10.1]} 52. Re7+ {[%clk 0:00:24.3]}
52... Kf2 {[%clk 0:00:10.3]} 53. Rd7 {[%clk 0:00:15.4]} 53... Ke2 {[%clk
0:00:10.6]} 54. Re7+ {[%clk 0:00:06.2]} 54... Kf2 {[%clk 0:00:11.1]} 55. Rd7
{[%clk 0:00:03.1]} 55... Rb1+ {[%clk 0:00:11]} 56. Kc3 {[%clk 0:00:03.1]} 56...
Rxb6 {[%clk 0:00:10.5]} 57. Rxf7 {[%clk 0:00:03.1]} 57... Ke2 {[%clk 0:00:09.4]}
58. Re7+ {[%clk 0:00:03]} 58... Kf3 {[%clk 0:00:09.6]} 59. Kxd3 {[%clk
0:00:03.3]} 59... Kxg3 {[%clk 0:00:09.6]} 60. Rf7 {[%clk 0:00:03.4]} 60... Kg4
{[%clk 0:00:06.3]} 61. Ke3 {[%clk 0:00:03.1]} 61... Rb3+ {[%clk 0:00:06.3]} 62.
Kf2 {[%clk 0:00:03.5]} 62... Rf3+ {[%clk 0:00:06.1]} 63. Kg2 {[%clk 0:00:03.9]}
63... Rxf4 {[%clk 0:00:07]} 64. Rg7 {[%clk 0:00:04.5]} 64... g5 {[%clk
0:00:07.5]} 65. Ra7 {[%clk 0:00:05.4]} 65... Rf5 {[%clk 0:00:08.3]} 66. Ra4+
{[%clk 0:00:05.5]} 66... Rf4 {[%clk 0:00:09.2]} 67. Ra3 {[%clk 0:00:06.4]} 67...
Re4 {[%clk 0:00:09.4]} 68. Rg3+ {[%clk 0:00:05.9]} 68... Kf5 {[%clk 0:00:10.3]}
69. Ra3 {[%clk 0:00:06.8]} 69... Rf4 {[%clk 0:00:10.8]} 70. Kg3 {[%clk
0:00:07.1]} 70... Rd4 {[%clk 0:00:10.9]} 71. Ra5+ {[%clk 0:00:07.5]} 71... Kg6
{[%clk 0:00:11.5]} 72. Ra6+ {[%clk 0:00:08]} 72... Kh5 {[%clk 0:00:12]} 73. Ra3
{[%clk 0:00:08.9]} 73... Rg4+ {[%clk 0:00:12.5]} 74. Kh3 {[%clk 0:00:09]} 74...
Rh4+ {[%clk 0:00:13.4]} 75. Kg3 {[%clk 0:00:09.4]} 75... Rb4 {[%clk 0:00:14.3]}
76. Kh3 {[%clk 0:00:09.6]} 76... Rc4 {[%clk 0:00:13.5]} 77. Kg3 {[%clk
0:00:09.5]} 77... Rc5 {[%clk 0:00:13.9]} 78. Kh3 {[%clk 0:00:09.2]} 78... Kg6
{[%clk 0:00:13.7]} 79. Kg3 {[%clk 0:00:09.5]} 79... Kf5 {[%clk 0:00:13.7]} 80.
Rf3+ {[%clk 0:00:09.5]} 80... Ke4 {[%clk 0:00:14.3]} 81. Ra3 {[%clk 0:00:10.4]}
81... Rc1 {[%clk 0:00:10.7]} 82. Ra4+ {[%clk 0:00:10]} 82... Kf5 {[%clk
0:00:11]} 83. Ra5+ {[%clk 0:00:10.5]} 83... Kg6 {[%clk 0:00:11.5]} 84. Ra4
{[%clk 0:00:10.7]} 84... Rg1+ {[%clk 0:00:11.3]} 85. Kh2 {[%clk 0:00:11]} 85...
Rb1 {[%clk 0:00:11]} 86. Kg3 {[%clk 0:00:11.1]} 86... Kh5 {[%clk 0:00:11.3]} 87.
Ra3 {[%clk 0:00:11.6]} 87... Rg1+ {[%clk 0:00:11.5]} 88. Kh2 {[%clk 0:00:12]}
88... Rg4 {[%clk 0:00:11.9]} 89. Kh3 {[%clk 0:00:12.2]} 89... Rc4 {[%clk
0:00:11.8]} 90. Kg3 {[%clk 0:00:11.8]} 90... Rc1 {[%clk 0:00:12.2]} 91. Rb3
{[%clk 0:00:11]} 91... Rh1 {[%clk 0:00:11.5]} 92. Rb8 {[%clk 0:00:09.9]} 92...
Rg1+ {[%clk 0:00:11.4]} 93. Kh2 {[%clk 0:00:10.1]} 93... Ra1 {[%clk 0:00:12.3]}
94. Rb4 {[%clk 0:00:08.2]} 94... g4 {[%clk 0:00:11.1]} 95. Rb8 {[%clk
0:00:07.7]} 95... Ra2+ {[%clk 0:00:11.2]} 96. Kg3 {[%clk 0:00:07.5]} 96... Ra3+
{[%clk 0:00:12.1]} 97. Kg2 {[%clk 0:00:07.9]} 97... Kg5 {[%clk 0:00:08]} 98.
Rg8+ {[%clk 0:00:07.6]} 98... Kf4 {[%clk 0:00:08.3]} 99. Rf8+ {[%clk 0:00:08.1]}
99... Ke5 {[%clk 0:00:08.1]} 100. Re8+ {[%clk 0:00:08.1]} 100... Kf6 {[%clk
0:00:08.1]} 101. Rf8+ {[%clk 0:00:08.2]} 101... Kg6 {[%clk 0:00:06.6]} 102. Rg8+
{[%clk 0:00:07.9]} 102... Kh6 {[%clk 0:00:07.2]} 103. Rh8+ {[%clk 0:00:07.9]}
103... Kg5 {[%clk 0:00:07.4]} 104. Rg8+ {[%clk 0:00:07.8]} 104... Kh4 {[%clk
0:00:07.7]} 105. Rh8+ {[%clk 0:00:07.9]} 105... Kg5 {[%clk 0:00:08.3]} 106. Rg8+
{[%clk 0:00:08.4]} 1/2-1/2